[Event "British Championship 2024"]
[Site "Hull"]
[Date "2024.07.31"]
[Round "4.32"]
[White "Hryshchenko, Kamila"]
[Black "Murawski, Jan"]
[Result "1-0"]
[Annotator "RC"]
[ECO "C48"]
[WhiteElo "2161"]
[BlackElo "2134"]
[PlyCount "209"]
[EventDate "2024.07.31"]
[EventCountry "GBR"]
[SourceTitle "playchess.com"]
[Source "ChessBase"]
[SourceQuality "1"]
[TimeControl "40/5400+30:1800+30"]

1. e4 {[%emt 0:08:26]} e5 {[%emt 0:00:01]} 2. Nf3 {[%emt 0:00:24]} Nc6 {[%emt 0:00:01]} 3. Bb5 {[%emt 0:00:10]} Nf6 {[%emt 0:00:01]} 4. d3 {[%emt 0:00:53]} Bc5 {[%emt 0:00:02]} 5. Nc3 {[%emt 0:00:48]} Nd4 {[%emt 0:00:02]} 6. Nxd4 {[%emt 0:04:44]} Bxd4 {[%emt 0:00:28]} 7. O-O {[%emt 0:01:30]} O-O {[%emt 0:04:46]} 8. h3 {[%emt 0:01:07]} d5 {[%emt 0:12:24]} 9. exd5 {[%emt 0:06:45]} Bxc3 {[%emt 0:04:15]} 10. bxc3 {[%emt 0:00:25]} Nxd5 {[%emt 0:00:02]} 11. Qf3 {[%emt 0:07:33]} c6 {[%emt 0:20:28]} 12. Bc4 {[%emt 0:00:15]} Be6 {[%emt 0:01:55]} 13. a4 {[%emt 0:02:17]} Re8 {[%emt 0:06:46]} 14. Re1 {[%emt 0:00:34]} Nf6 {[%emt 0:03:23]} 15. Bxe6 {[%emt 0:02:07]} Rxe6 {[%emt 0:00:03]} 16. a5 {[%emt 0:03:34]} b5 {[%emt 0:08:04]} 17. a6 {[%emt 0:02:19]} Qd5 {[%emt 0:04:02]} 18. Qxd5 {[%emt 0:04:01]} cxd5 {[%emt 0:05:52]} 19. Ra5 {[%emt 0:03:50]} Rb8 {[%emt 0:12:25]} 20. Bd2 {[%emt 0:01:50]} Rbb6 {[%emt 0:03:23]} 21. Rea1 {[%emt 0:01:29]} d4 {[%emt 0:02:32]} 22. cxd4 {[%emt 0:02:11]} exd4 {[%emt 0:00:01]} 23. Rb1 {[%emt 0:02:12]} h6 {[%emt 0:02:04]} 24. Rbxb5 {[%emt 0:02:44]} Rxb5 {[%emt 0:00:20]} 25. Rxb5 {[%emt 0:00:08]} Rxa6 {[%emt 0:00:01]} 26. Rb8+ {[%emt 0:00:28]} Kh7 {[%emt 0:00:01]} 27. Rb4 {[%emt 0:00:11]} Rc6 {[%emt 0:00:36]} 28. Rxd4 {[%emt 0:00:45]} Rxc2 {[%emt 0:00:02]} 29. Be1 {[%emt 0:02:22]} Ra2 {[%emt 0:01:19]} 30. Kf1 {[%emt 0:02:03]} a5 {[%emt 0:01:02]} 31. Rd6 {[%emt 0:00:04]} a4 {[%emt 0:00:24]} 32. Bc3 {[%emt 0:01:15]} Ne8 {[%emt 0:05:47]} 33. Rd7 {[%emt 0:00:19]} Kg6 {[%emt 0:02:01]} 34. Ke1 {[%emt 0:02:04]} f6 {[%emt 0:01:09]} 35. Bd4 {[%emt 0:00:49]} Ra3 {[%emt 0:00:56]} 36. Kd2 {[%emt 0:01:29]} Ra2+ {[%emt 0:01:04]} 37. Kc3 {[%emt 0:00:46]} a3 {[%emt 0:00:43]} 38. Be3 {[%emt 0:05:31]} f5 {[%emt 0:00:32]} 39. Ra7 {[%emt 0:01:15]} Nf6 {[%emt 0:00:31]} 40. Kb3 {[%emt 0:01:33]} Rb2+ {[%emt 0:00:02]} 41. Kxa3 {[%emt 0:30:38]} Rb1 {[%emt 0:02:52]} 42. Ka2 {[%emt 0:00:00]} Rg1 {[%emt 0:02:00]} 43. g3 {[%emt 0:00:00]} Rh1 {[%emt 0:00:22]} 44. Kb3 {[%emt 0:00:00]} Rxh3 {[%emt 0:01:13]} 45. Kc4 {[%emt 0:00:00]} Rh1 {[%emt 0:00:52]} 46. d4 {[%emt 0:00:00]} Rd1 {[%emt 0:01:26]} 47. Re7 {[%emt 0:00:00]} h5 {[%emt 0:07:09]} 48. Bf4 {[%emt 0:00:00]} Ng4 {[%emt 0:03:07]} 49. d5 {[%emt 0:00:00]} Nxf2 {[%emt 0:01:52]} 50. Be5 {[%emt 0:00:00]} Ng4 {[%emt 0:01:04]} 51. Bxg7 {[%emt 0:00:00]} Nf2 {[%emt 0:02:44]} 52. Be5 {[%emt 0:00:00]} Ne4 {[%emt 0:00:36]} 53. Re6+ {[%emt 0:00:00]} Kf7 {[%emt 0:00:50]} 54. Rh6 {[%emt 0:00:00]} Rc1+ {[%emt 0:00:41]} 55. Kb4 {[%emt 0:00:00]} Rc5 {[%emt 0:05:06]} 56. Rf6+ {[%emt 0:00:00]} Ke8 {[%emt 0:06:28]} 57. Re6+ {[%emt 0:00:00]} Kf7 {[%emt 0:00:25]} 58. Rd6 {[%emt 0:00:00]} Rc1 {[%emt 0:00:39]} 59. Rc6 {[%emt 0:00:00]} Rb1+ {[%emt 0:00:23]} 60. Kc4 {[%emt 0:00:00]} Rc1+ {[%emt 0:00:18]} 61. Kb3 {[%emt 0:00:00]} Rd1 {[%emt 0:00:19]} 62. Kc4 {[%emt 0:00:00]} Rc1+ {[%emt 0:00:04]} 63. Kb5 {[%emt 0:00:00]} Rb1+ {[%emt 0:00:07]} 64. Kc4 {[%emt 0:01:35]} Rc1+ {[%emt 0:00:11]} 65. Kb3 {[%emt 0:00:07]} Rd1 {[%emt 0:00:06]} 66. Rc7+ {[%emt 0:00:21]} Ke8 {[%emt 0:00:40]} 67. Kc4 {[%emt 0:00:21]} Rc1+ {[%emt 0:01:44]} 68. Kb5 {[%emt 0:00:07]} Rxc7 {[%emt 0:00:10]} 69. Bxc7 {[%emt 0:00:06]} Kd7 {[%emt 0:00:03]} 70. Bf4 {[%emt 0:00:18]} Nd6+ {[%emt 0:01:19]} 71. Kc5 {[%emt 0:00:19]} Nf7 {[%emt 0:00:16]} 72. d6 {[%emt 0:03:32]} Nd8 {[%emt 0:00:59]} 73. Kd5 {[%emt 0:00:18]} Ne6 {[%emt 0:00:35]} 74. Be3 {[%emt 0:02:29]} Nd8 {[%emt 0:00:43]} 75. Bd2 {[%emt 0:00:51]} Ne6 {[%emt 0:00:28]} 76. Ke5 {[%emt 0:02:54]} Nd8 {[%emt 0:00:35]} 77. Bf4 {[%emt 0:05:16]} Ne6 {[%emt 0:00:26]} 78. Bc1 {[%emt 0:00:55]} Nd8 {[%emt 0:00:35]} 79. Ba3 {[%emt 0:01:33]} Ne6 {[%emt 0:00:25]} 80. Kxf5 {[%emt 0:00:24]} Nd4+ {[%emt 0:00:00]} 81. Kf4 {[%emt 0:02:07]} Ne2+ {[%emt 0:00:09]} 82. Kf3 {[%emt 0:00:06]} Nd4+ {[%emt 0:00:01]} 83. Kg2 {[%emt 0:00:36]} Ne2 {[%emt 0:00:31]} 84. Bc5 {[%emt 0:00:25]} Nc3 {[%emt 0:01:16]} 85. Kf3 {[%emt 0:00:15]} Nb5 {[%emt 0:00:54]} 86. Kf4 {[%emt 0:00:08]} h4 {[%emt 0:00:09]} 87. gxh4 {[%emt 0:01:35]} Nxd6 {[%emt 0:00:02]} 88. Ke5 {[%emt 0:00:18]} Nf7+ {[%emt 0:00:42]} 89. Kf6 {[%emt 0:00:03]} Nh6 {[%emt 0:00:06]} 90. h5 {[%emt 0:02:33]} Ke8 {[%emt 0:00:21]} 91. Bb4 {[%emt 0:00:44]} Ng4+ {[%emt 0:00:22]} 92. Kg5 {[%emt 0:00:19]} Ne5 {[%emt 0:00:10]} 93. Kf6 {[%emt 0:00:15]} Ng4+ {[%emt 0:00:08]} 94. Kf5 {[%emt 0:00:22]} Nh6+ {[%emt 0:00:11]} 95. Kg5 {[%emt 0:01:39]} Nf7+ {[%emt 0:00:05]} 96. Kf6 {[%emt 0:00:06]} Nh6 {[%emt 0:00:04]} 97. Bd2 {[%emt 0:00:39]} Ng8+ {[%emt 0:02:58]} 98. Kg7 {[%emt 0:00:30]} Ne7 {[%emt 0:00:01]} 99. Bb4 {[%emt 0:00:17]} Nf5+ {[%emt 0:00:09]} 100. Kg6 {[%emt 0:00:30]} Nh4+ {[%emt 0:02:01]} 101. Kf6 {[%emt 0:00:20]} Nf3 {[%emt 0:00:45]} 102. h6 {[%emt 0:00:31]} Ng5 {[%emt 0:00:06]} 103. Kxg5 {[%emt 0:00:11]} Kf7 {[%emt 0:00:01]} 104. Bc3 {[%emt 0:00:13]} Kf8 {[%emt 0:00:10]} 105. h7 {[%emt 0:00:05]} 1-0

[Event "British Championship 2024"]
[Site "Hull"]
[Date "2024.07.31"]
[Round "4.33"]
[White "Badacsonyi, Stanley"]
[Black "Verbytski, Oleg"]
[Result "1-0"]
[Annotator "RC"]
[ECO "D36"]
[WhiteElo "2132"]
[BlackElo "2008"]
[PlyCount "80"]
[EventDate "2024.07.31"]
[EventCountry "GBR"]
[SourceTitle "playchess.com"]
[Source "ChessBase"]
[SourceQuality "1"]
[TimeControl "40/5400+30:1800+30"]

1. d4 {[%emt 0:00:02]} d5 {[%emt 0:00:05]} 2. c4 {[%emt 0:00:04]} e6 {[%emt 0:00:04]} 3. Nc3 {[%emt 0:00:05]} Nf6 {[%emt 0:00:08]} 4. cxd5 {[%emt 0:00:04]} exd5 {[%emt 0:00:07]} 5. Bg5 {[%emt 0:00:04]} c6 {[%emt 0:00:23]} 6. e3 {[%emt 0:00:05]} h6 {[%emt 0:00:09]} 7. Bh4 {[%emt 0:00:04]} Be7 {[%emt 0:00:09]} 8. Bd3 {[%emt 0:00:03]} O-O {[%emt 0:00:39]} 9. Nge2 {[%emt 0:00:07]} Nbd7 {[%emt 0:00:14]} 10. Qc2 {[%emt 0:00:05]} Re8 {[%emt 0:00:24]} 11. O-O {[%emt 0:00:11]} Nf8 {[%emt 0:00:14]} 12. f3 {[%emt 0:01:04]} Ne6 {[%emt 0:01:01]} 13. Bf2 {[%emt 0:00:29]} b5 {[%emt 0:07:55]} 14. Rad1 {[%emt 0:01:26]} Bd7 {[%emt 0:02:11]} 15. h3 {[%emt 0:01:43]} Rc8 {[%emt 0:06:36]} 16. e4 {[%emt 0:02:59]} b4 {[%emt 0:05:20]} 17. Na4 {[%emt 0:00:30]} dxe4 {[%emt 0:03:04]} 18. fxe4 {[%emt 0:00:08]} Qa5 {[%emt 0:00:08]} 19. b3 {[%emt 0:05:32]} c5 {[%emt 0:01:51]} 20. d5 {[%emt 0:05:01]} Nd4 {[%emt 0:00:30]} 21. Nxd4 {[%emt 0:07:54]} cxd4 {[%emt 0:00:19]} 22. Qe2 {[%emt 0:00:14]} Bxa4 {[%emt 0:07:09]} 23. bxa4 {[%emt 1:14:06]} Bc5 {[%emt 0:00:17]} 24. Qf3 {[%emt 0:00:00]} Nd7 {[%emt 0:08:15]} 25. Bb5 {[%emt 0:00:00]} Red8 {[%emt 0:08:52]} 26. Bh4 {[%emt 0:00:00]} f6 {[%emt 0:10:51]} 27. Bxd7 {[%emt 0:00:00]} Rxd7 {[%emt 0:00:06]} 28. Qg4 {[%emt 0:00:00]} Qxa4 {[%emt 0:02:16]} 29. Rxf6 {[%emt 0:00:00]} d3+ {[%emt 0:05:29]} 30. Kh2 {[%emt 0:00:00]} Bd4 {[%emt 0:02:01]} 31. Rff1 {[%emt 0:00:00]} Qb5 {[%emt 0:03:38]} 32. Rf3 {[%emt 0:00:00]} d2 {[%emt 0:20:18]} 33. Rxd2 {[%emt 0:00:00]} Bc3 {[%emt 0:01:28]} 34. Rdf2 {[%emt 0:00:00]} Bd4 {[%emt 0:00:48]} 35. Qe6+ {[%emt 0:00:00]} Kh7 {[%emt 0:00:41]} 36. Rf1 {[%emt 0:00:00]} Rdc7 {[%emt 0:03:06]} 37. Bg3 {[%emt 0:00:00]} Rc2 {[%emt 0:01:13]} 38. Rf8 {[%emt 0:00:00]} Rxg2+ {[%emt 0:00:13]} 39. Kxg2 {[%emt 0:00:00]} Qe2+ {[%emt 0:00:05]} 40. R1f2 {[%emt 0:00:00]} Bxf2 {[%emt 0:00:31]} 1-0

[Event "British Championship 2024"]
[Site "Hull"]
[Date "2024.07.31"]
[Round "4.34"]
[White "Pal, Rohan"]
[Black "Banerjee, Supratit"]
[Result "0-1"]
[Annotator "RC"]
[ECO "D41"]
[WhiteElo "2097"]
[BlackElo "2115"]
[PlyCount "52"]
[EventDate "2024.07.31"]
[EventCountry "GBR"]
[SourceTitle "playchess.com"]
[Source "ChessBase"]
[SourceQuality "1"]
[TimeControl "40/5400+30:1800+30"]

1. d4 {[%emt 0:00:05]} d5 {[%emt 0:00:08]} 2. c4 {[%emt 0:00:03]} e6 {[%emt 0:00:11]} 3. Nc3 {[%emt 0:00:02]} Be7 {[%emt 0:00:14]} 4. Nf3 {[%emt 0:00:03]} Nf6 {[%emt 0:00:16]} 5. Bg5 {[%emt 0:00:03]} O-O {[%emt 0:00:14]} 6. e3 {[%emt 0:00:03]} Nbd7 {[%emt 0:00:20]} 7. Bd3 {[%emt 0:00:36]} dxc4 {[%emt 0:03:03]} 8. Bxc4 {[%emt 0:00:08]} c5 {[%emt 0:00:23]} 9. O-O {[%emt 0:00:29]} Nb6 {[%emt 0:00:37]} 10. Bd3 {[%emt 0:04:52]} cxd4 {[%emt 0:08:06]} 11. exd4 {[%emt 0:02:36]} Nbd5 {[%emt 0:13:27]} 12. Qe2 {[%emt 0:04:43]} h6 {[%emt 0:02:20]} 13. Nxd5 {[%emt 0:13:13]} Nxd5 {[%emt 0:06:29]} 14. Bxe7 {[%emt 0:14:57]} Qxe7 {[%emt 0:01:12]} 15. Qe4 {[%emt 0:04:45]} Nf6 {[%emt 0:00:42]} 16. Qf4 {[%emt 0:00:44]} Rd8 {[%emt 0:11:18]} 17. Rac1 {[%emt 0:02:07]} Qd6 {[%emt 0:03:35]} 18. Qe3 {[%emt 0:05:37]} b6 {[%emt 0:16:08]} 19. Bb1 {[%emt 0:04:52]} Bb7 {[%emt 0:03:08]} 20. Rcd1 {[%emt 0:07:26]} Ng4 {[%emt 0:00:30]} 21. Qd3 {[%emt 0:03:03]} Bxf3 {[%emt 0:00:09]} 22. Qh7+ {[%emt 0:00:07]} Kf8 {[%emt 0:00:08]} 23. g3 {[%emt 0:01:02]} Bxd1 {[%emt 0:00:07]} 24. Rxd1 {[%emt 0:00:03]} Qd5 {[%emt 0:00:37]} 25. Qh8+ {[%emt 0:00:17]} Ke7 {[%emt 0:00:07]} 26. Qxg7 {[%emt 0:00:05]} Qh5 {[%emt 0:01:26]} 0-1

[Event "British Championship 2024"]
[Site "Hull"]
[Date "2024.07.31"]
[Round "4.35"]
[White "Sachdeva, Ronit"]
[Black "Mitchell, Martin"]
[Result "1/2-1/2"]
[Annotator "RC"]
[ECO "E04"]
[WhiteElo "1907"]
[BlackElo "2159"]
[PlyCount "122"]
[EventDate "2024.07.31"]
[EventCountry "GBR"]
[SourceTitle "playchess.com"]
[Source "ChessBase"]
[SourceQuality "1"]
[TimeControl "40/5400+30:1800+30"]

1. Nf3 {[%emt 0:00:05]} Nf6 {[%emt 0:00:28]} 2. c4 {[%emt 0:00:07]} e6 {[%emt 0:00:48]} 3. g3 {[%emt 0:00:08]} d5 {[%emt 0:06:09]} 4. d4 {[%emt 0:00:05]} dxc4 {[%emt 0:00:45]} 5. Bg2 {[%emt 0:00:08]} a6 {[%emt 0:00:32]} 6. O-O {[%emt 0:06:49]} Nc6 {[%emt 0:00:23]} 7. e3 {[%emt 0:05:53]} Rb8 {[%emt 0:00:25]} 8. Nfd2 {[%emt 0:06:38]} Nb4 {[%emt 0:20:06]} 9. Nxc4 {[%emt 0:03:26]} c5 {[%emt 0:01:23]} 10. a3 {[%emt 0:02:35]} Nc6 {[%emt 0:01:55]} 11. dxc5 {[%emt 0:03:29]} Qxd1 {[%emt 0:09:44]} 12. Rxd1 {[%emt 0:00:04]} Bxc5 {[%emt 0:00:21]} 13. b4 {[%emt 0:01:23]} Ba7 {[%emt 0:06:36]} 14. Nd6+ {[%emt 0:02:47]} Ke7 {[%emt 0:00:34]} 15. Nxc8+ {[%emt 0:01:32]} Rbxc8 {[%emt 0:01:15]} 16. Bb2 {[%emt 0:02:29]} Rhd8 {[%emt 0:03:52]} 17. Nc3 {[%emt 0:03:52]} Rxd1+ {[%emt 0:08:57]} 18. Rxd1 {[%emt 0:00:37]} a5 {[%emt 0:01:22]} 19. b5 {[%emt 0:06:59]} Ne5 {[%emt 0:02:18]} 20. Na4 {[%emt 0:20:06]} Nc4 {[%emt 0:04:04]} 21. Bxb7 {[%emt 0:06:40]} Nxb2 {[%emt 0:03:12]} 22. Nxb2 {[%emt 0:00:07]} Rc3 {[%emt 0:01:27]} 23. a4 {[%emt 0:01:31]} Nd7 {[%emt 0:01:37]} 24. Nd3 {[%emt 0:02:32]} f6 {[%emt 0:01:26]} 25. Bc6 {[%emt 0:03:12]} Nb8 {[%emt 0:01:40]} 26. Bf3 {[%emt 0:01:54]} Rc4 {[%emt 0:02:46]} 27. Nb2 {[%emt 0:03:48]} Rc2 {[%emt 0:01:49]} 28. Rb1 {[%emt 0:04:31]} Nd7 {[%emt 0:04:32]} 29. Kf1 {[%emt 0:03:20]} Bc5 {[%emt 0:04:08]} 30. Nd3 {[%emt 0:02:44]} Bb6 {[%emt 0:01:46]} 31. Ke1 {[%emt 0:01:22]} Ra2 {[%emt 0:02:54]} 32. Bd1 {[%emt 0:01:09]} Ra3 {[%emt 0:04:06]} 33. Bb3 {[%emt 0:02:10]} e5 {[%emt 0:00:13]} 34. e4 {[%emt 0:00:57]} Bd4 {[%emt 0:00:49]} 35. Kd2 {[%emt 0:01:42]} Ra1 {[%emt 0:01:00]} 36. Rxa1 {[%emt 0:00:22]} Bxa1 {[%emt 0:00:02]} 37. f3 {[%emt 0:00:46]} Kd6 {[%emt 0:01:07]} 38. Kc2 {[%emt 0:00:42]} Bd4 {[%emt 0:00:35]} 39. Nb2 {[%emt 0:00:31]} Nb6 {[%emt 0:00:12]} 40. Nd3 {[%emt 0:00:25]} Bg1 {[%emt 0:00:43]} 41. h3 {[%emt 0:30:35]} Bh2 {[%emt 0:07:26]} 42. g4 {[%emt 0:00:00]} Bg1 {[%emt 0:00:28]} 43. Kd2 {[%emt 0:00:00]} Nd7 {[%emt 0:01:27]} 44. Bg8 {[%emt 0:00:00]} h6 {[%emt 0:00:26]} 45. Kc2 {[%emt 0:00:00]} Nb6 {[%emt 0:05:03]} 46. Kb3 {[%emt 0:00:00]} Bd4 {[%emt 0:01:21]} 47. Bf7 {[%emt 0:00:00]} Ke7 {[%emt 0:00:28]} 48. Bg6 {[%emt 0:00:56]} Kd6 {[%emt 0:00:51]} 49. Bf5 {[%emt 0:00:15]} Na8 {[%emt 0:01:14]} 50. Ne1 {[%emt 0:01:05]} Nb6 {[%emt 0:02:58]} 51. Nd3 {[%emt 0:02:00]} Be3 {[%emt 0:00:49]} 52. h4 {[%emt 0:00:29]} g5 {[%emt 0:01:19]} 53. h5 {[%emt 0:00:32]} Na8 {[%emt 0:01:14]} 54. Bh7 {[%emt 0:01:07]} Nb6 {[%emt 0:00:35]} 55. Bg8 {[%emt 0:00:23]} Bd4 {[%emt 0:03:32]} 56. Bf7 {[%emt 0:00:42]} Ke7 {[%emt 0:00:38]} 57. Bc4 {[%emt 0:00:42]} Kd6 {[%emt 0:00:29]} 58. Bg8 {[%emt 0:00:27]} Nd7 {[%emt 0:00:18]} 59. Bf7 {[%emt 0:00:26]} Nc5+ {[%emt 0:00:44]} 60. Nxc5 {[%emt 0:00:11]} Bxc5 {[%emt 0:00:19]} 61. Kc4 {[%emt 0:00:18]} Bb6 {[%emt 0:00:26]} 1/2-1/2

[Event "British Championship 2024"]
[Site "Hull"]
[Date "2024.07.31"]
[Round "4.36"]
[White "Larkin, Benjamin"]
[Black "Stubbs, Oliver"]
[Result "1/2-1/2"]
[Annotator "RC"]
[ECO "C11"]
[WhiteElo "1952"]
[BlackElo "2146"]
[PlyCount "57"]
[EventDate "2024.07.31"]
[EventCountry "GBR"]
[SourceTitle "playchess.com"]
[Source "ChessBase"]
[SourceQuality "1"]
[TimeControl "40/5400+30:1800+30"]

1. e4 {[%emt 0:00:03]} e6 {[%emt 0:01:28]} 2. d4 {[%emt 0:00:07]} d5 {[%emt 0:00:08]} 3. Nc3 {[%emt 0:00:33]} Nf6 {[%emt 0:00:06]} 4. e5 {[%emt 0:00:24]} Nfd7 {[%emt 0:00:05]} 5. f4 {[%emt 0:00:07]} c5 {[%emt 0:00:07]} 6. Nf3 {[%emt 0:00:04]} Nc6 {[%emt 0:00:07]} 7. Be3 {[%emt 0:00:05]} a6 {[%emt 0:00:18]} 8. Qd2 {[%emt 0:00:58]} Be7 {[%emt 0:00:27]} 9. Bd3 {[%emt 0:00:12]} b5 {[%emt 0:00:27]} 10. Qf2 {[%emt 0:00:13]} b4 {[%emt 0:03:31]} 11. Na4 {[%emt 0:00:07]} c4 {[%emt 0:01:03]} 12. Be2 {[%emt 0:00:07]} Nb6 {[%emt 0:01:16]} 13. Nc5 {[%emt 0:00:37]} a5 {[%emt 0:01:22]} 14. O-O {[%emt 0:00:10]} O-O {[%emt 0:02:38]} 15. a4 {[%emt 0:03:10]} bxa3 {[%emt 0:08:20]} 16. Rxa3 {[%emt 0:00:11]} Nd7 {[%emt 0:02:15]} 17. c3 {[%emt 0:00:08]} Nxc5 {[%emt 0:03:56]} 18. dxc5 {[%emt 0:00:06]} f6 {[%emt 0:05:46]} 19. Nd4 {[%emt 0:06:29]} Bd7 {[%emt 0:13:15]} 20. exf6 {[%emt 0:05:24]} Bxf6 {[%emt 0:03:35]} 21. Bg4 {[%emt 0:02:39]} Re8 {[%emt 0:06:37]} 22. Nxc6 {[%emt 0:04:38]} Bxc6 {[%emt 0:00:08]} 23. Bd4 {[%emt 0:00:13]} Qc7 {[%emt 0:07:35]} 24. Re1 {[%emt 0:20:15]} e5 {[%emt 0:04:52]} 25. fxe5 {[%emt 0:08:08]} Bxe5 {[%emt 0:00:16]} 26. Bxe5 {[%emt 0:00:13]} Rxe5 {[%emt 0:00:07]} 27. Rxe5 {[%emt 0:03:38]} Qxe5 {[%emt 0:00:08]} 28. Bf3 {[%emt 0:00:45]} a4 {[%emt 0:02:45]} 29. h3 {[%emt 0:04:26]} 1/2-1/2

[Event "British Championship 2024"]
[Site "Hull"]
[Date "2024.07.31"]
[Round "4.37"]
[White "Sanger, Jake M"]
[Black "Larchikov, Maksym"]
[Result "0-1"]
[Annotator "RC"]
[ECO "E05"]
[WhiteElo "2026"]
[BlackElo "2181"]
[PlyCount "72"]
[EventDate "2024.07.31"]
[EventCountry "GBR"]
[SourceTitle "playchess.com"]
[Source "ChessBase"]
[SourceQuality "1"]
[TimeControl "40/5400+30:1800+30"]

1. d4 {[%emt 0:00:03]} d5 {[%emt 0:00:08]} 2. c4 {[%emt 0:00:05]} e6 {[%emt 0:00:04]} 3. Nf3 {[%emt 0:00:05]} Nf6 {[%emt 0:00:06]} 4. g3 {[%emt 0:00:04]} Be7 {[%emt 0:00:07]} 5. Bg2 {[%emt 0:00:05]} O-O {[%emt 0:00:06]} 6. O-O {[%emt 0:00:03]} dxc4 {[%emt 0:00:07]} 7. Qc2 {[%emt 0:00:06]} a6 {[%emt 0:00:10]} 8. a4 {[%emt 0:00:15]} Bd7 {[%emt 0:01:49]} 9. Qxc4 {[%emt 0:00:09]} Bc6 {[%emt 0:00:41]} 10. Bg5 {[%emt 0:00:36]} Nbd7 {[%emt 0:06:06]} 11. Nbd2 {[%emt 0:03:11]} Rc8 {[%emt 0:12:34]} 12. Qc2 {[%emt 0:04:33]} Nd5 {[%emt 0:01:55]} 13. Bxe7 {[%emt 0:00:13]} Qxe7 {[%emt 0:00:05]} 14. e4 {[%emt 0:05:46]} Nb4 {[%emt 0:00:41]} 15. Qc3 {[%emt 0:04:22]} a5 {[%emt 0:05:22]} 16. Rfe1 {[%emt 0:04:48]} Qf6 {[%emt 0:11:55]} 17. Nc4 {[%emt 0:10:10]} b6 {[%emt 0:01:01]} 18. Nce5 {[%emt 0:12:05]} Nxe5 {[%emt 0:03:49]} 19. Nxe5 {[%emt 0:00:05]} Be8 {[%emt 0:00:12]} 20. Qb3 {[%emt 0:06:58]} c5 {[%emt 0:16:04]} 21. Nc4 {[%emt 0:04:28]} cxd4 {[%emt 0:02:41]} 22. e5 {[%emt 0:00:56]} Qd8 {[%emt 0:04:23]} 23. Nd6 {[%emt 0:01:21]} Rc7 {[%emt 0:02:35]} 24. Rad1 {[%emt 0:05:58]} Bc6 {[%emt 0:11:04]} 25. Be4 {[%emt 0:01:47]} Bxe4 {[%emt 0:01:14]} 26. Rxe4 {[%emt 0:00:14]} d3 {[%emt 0:00:34]} 27. Rxb4 {[%emt 0:19:27]} axb4 {[%emt 0:00:06]} 28. Rxd3 {[%emt 0:00:43]} Qa8 {[%emt 0:01:56]} 29. f3 {[%emt 0:00:12]} Qa5 {[%emt 0:00:34]} 30. Nb5 {[%emt 0:00:36]} Rc5 {[%emt 0:01:57]} 31. Rd7 {[%emt 0:00:33]} Qa8 {[%emt 0:00:58]} 32. Rd6 {[%emt 0:02:38]} Rxe5 {[%emt 0:03:06]} 33. Rxb6 {[%emt 0:00:06]} Qc8 {[%emt 0:00:49]} 34. Qxb4 {[%emt 0:01:02]} Qc1+ {[%emt 0:00:23]} 35. Kg2 {[%emt 0:00:10]} Qc2+ {[%emt 0:01:25]} 36. Kg1 {[%emt 0:00:47]} Re2 {[%emt 0:00:42]} 0-1

[Event "British Championship 2024"]
[Site "Hull"]
[Date "2024.07.31"]
[Round "4.38"]
[White "Verma, Shlok"]
[Black "Taylor, Adam A"]
[Result "0-1"]
[Annotator "RC"]
[ECO "E14"]
[WhiteElo "2102"]
[BlackElo "2281"]
[PlyCount "110"]
[EventDate "2024.07.31"]
[EventCountry "GBR"]
[SourceTitle "playchess.com"]
[Source "ChessBase"]
[SourceQuality "1"]
[TimeControl "40/5400+30:1800+30"]

1. d4 {[%emt 0:00:03]} Nf6 {[%emt 0:01:12]} 2. c4 {[%emt 0:00:08]} e6 {[%emt 0:00:03]} 3. Nf3 {[%emt 0:00:10]} Bb4+ {[%emt 0:00:04]} 4. Nbd2 {[%emt 0:00:07]} b6 {[%emt 0:03:25]} 5. a3 {[%emt 0:00:34]} Bxd2+ {[%emt 0:00:14]} 6. Qxd2 {[%emt 0:00:07]} Bb7 {[%emt 0:00:34]} 7. e3 {[%emt 0:00:06]} O-O {[%emt 0:12:03]} 8. Be2 {[%emt 0:00:09]} d6 {[%emt 0:03:29]} 9. b4 {[%emt 0:01:00]} Nbd7 {[%emt 0:01:57]} 10. O-O {[%emt 0:00:15]} Ne4 {[%emt 0:05:49]} 11. Qc2 {[%emt 0:00:01]} f5 {[%emt 0:00:06]} 12. d5 {[%emt 0:00:40]} e5 {[%emt 0:08:59]} 13. Nd2 {[%emt 0:00:07]} a5 {[%emt 0:06:11]} 14. f3 {[%emt 0:09:06]} Nxd2 {[%emt 0:02:09]} 15. Bxd2 {[%emt 0:00:10]} c6 {[%emt 0:13:21]} 16. dxc6 {[%emt 0:06:22]} Bxc6 {[%emt 0:00:01]} 17. Bd3 {[%emt 0:21:00]} Qf6 {[%emt 0:10:05]} 18. e4 {[%emt 0:01:16]} fxe4 {[%emt 0:02:53]} 19. Bxe4 {[%emt 0:06:14]} Bxe4 {[%emt 0:00:03]} 20. Qxe4 {[%emt 0:00:42]} Qe6 {[%emt 0:00:11]} 21. Rfc1 {[%emt 0:02:55]} Rfc8 {[%emt 0:02:34]} 22. Rab1 {[%emt 0:00:58]} axb4 {[%emt 0:01:53]} 23. axb4 {[%emt 0:00:08]} Nf6 {[%emt 0:00:29]} 24. Qd3 {[%emt 0:02:59]} d5 {[%emt 0:05:28]} 25. cxd5 {[%emt 0:06:26]} Qxd5 {[%emt 0:00:07]} 26. Qe3 {[%emt 0:02:54]} e4 {[%emt 0:03:49]} 27. fxe4 {[%emt 0:04:15]} Nxe4 {[%emt 0:03:25]} 28. Be1 {[%emt 0:00:12]} b5 {[%emt 0:01:25]} 29. Rd1 {[%emt 0:04:35]} Qf5 {[%emt 0:00:20]} 30. Rbc1 {[%emt 0:02:10]} Rxc1 {[%emt 0:03:38]} 31. Rxc1 {[%emt 0:00:30]} h6 {[%emt 0:00:54]} 32. Qf3 {[%emt 0:07:38]} Qg6 {[%emt 0:02:22]} 33. Qe2 {[%emt 0:02:35]} Qf5 {[%emt 0:01:59]} 34. Qf3 {[%emt 0:08:46]} Qg6 {[%emt 0:00:07]} 35. Qb3+ {[%emt 0:01:44]} Kh8 {[%emt 0:01:14]} 36. Qd5 {[%emt 0:04:08]} Qb6+ {[%emt 0:00:14]} 37. Kh1 {[%emt 0:00:17]} Rf8 {[%emt 0:00:23]} 38. Bh4 {[%emt 0:01:22]} Qe3 {[%emt 0:02:30]} 39. Qd1 {[%emt 0:05:22]} Rf4 {[%emt 0:03:39]} 40. Bg3 {[%emt 0:01:18]} Rf5 {[%emt 0:00:34]} 41. Bh4 {[%emt 0:09:35]} Qf4 {[%emt 0:08:18]} 42. g4 {[%emt 0:13:18]} Rf8 {[%emt 0:05:59]} 43. Kg2 {[%emt 0:00:11]} h5 {[%emt 0:06:23]} 44. Bg3 {[%emt 0:02:29]} Nxg3 {[%emt 0:01:19]} 45. hxg3 {[%emt 0:00:03]} Qe4+ {[%emt 0:00:10]} 46. Kh3 {[%emt 0:00:20]} Rf2 {[%emt 0:01:29]} 47. Rc8+ {[%emt 0:07:34]} Kh7 {[%emt 0:00:07]} 48. Rc5 {[%emt 0:00:30]} hxg4+ {[%emt 0:04:56]} 49. Kh4 {[%emt 0:00:05]} Rh2+ {[%emt 0:00:32]} 50. Kg5 {[%emt 0:00:10]} Qg6+ {[%emt 0:00:29]} 51. Kf4 {[%emt 0:00:04]} Rf2+ {[%emt 0:00:04]} 52. Ke3 {[%emt 0:01:00]} Rf3+ {[%emt 0:00:23]} 53. Kd4 {[%emt 0:00:10]} Qd6+ {[%emt 0:02:29]} 54. Rd5 {[%emt 0:00:12]} Qxb4+ {[%emt 0:00:03]} 55. Ke5 {[%emt 0:00:03]} Qe7+ {[%emt 0:00:04]} 0-1